[Event "Guimaraes Open 2018"]
[Site "Guimaraes"]
[Date "2018.10.07"]
[Round "6"]
[White "Fonseca, Pedro Miguel Ramos "]
[Black "Martinez Dourado, Daniel"]
[Result "1-0"]
[ECO "B01"]
[WhiteElo "1437"]
[BlackElo "1764"]
[Annotator "NA"]
[PlyCount "111"]
[EventDate "2018.10.04"]
[EventType "swiss"]
[EventCountry "POR"]
[SourceTitle "playchess.com"]
[Source "ChessBase"]
[SourceQuality "1"]
[TimeControl "5400+30"]

1. e4 {[%emt 0:03:24]} d5 {[%emt 0:00:29]} 2. exd5 {[%emt 0:00:05]} Nf6 {[%emt 0:00:06]} 3. d4 {[%emt 0:00:03]} Bg4 {[%emt 0:00:15]} 4. Be2 {[%emt 0:00:01]} Bxe2 {[%emt 0:01:46]} 5. Qxe2 {[%emt 0:02:00]} Qxd5 {[%emt 0:02:11]} 6. Nf3 {[%emt 0:00:05]} e6 {[%emt 0:02:15]} 7. O-O {[%emt 0:00:25]} Nc6 {[%emt 0:07:27]} 8. Nc3 {[%emt 0:00:21]} Qh5 {[%emt 0:04:19]} 9. Bf4 {[%emt 0:02:42]} g5 {[%emt 0:13:21]} 10. Bxg5 {[%emt 0:06:36]} Rg8 {[%emt 0:01:19]} 11. Bxf6 {[%emt 0:01:57]} Qg6 {[%emt 0:00:26]} 12. g3 {[%emt 0:04:16]} Qxf6 {[%emt 0:00:41]} 13. d5 {[%emt 0:01:59]} Nd8 {[%emt 0:03:30]} 14. Qb5+ {[%emt 0:03:07]} c6 {[%emt 0:01:16]} 15. dxc6 {[%emt 0:00:05]} bxc6 {[%emt 0:00:12]} 16. Qd3 {[%emt 0:01:18]} h5 {[%emt 0:02:41]} 17. Rad1 {[%emt 0:01:40]} Be7 {[%emt 0:01:20]} 18. h4 {[%emt 0:04:08]} Rb8 {[%emt 0:02:20]} 19. Ng5 {[%emt 0:01:23]} Qg6 {[%emt 0:06:49]} 20. Qd7+ {[%emt 0:05:06]} Kf8 {[%emt 0:00:13]} 21. Qxa7 {[%emt 0:02:30]} Rxb2 {[%emt 0:07:34]} 22. Rd7 {[%emt 0:01:16]} Bxg5 {[%emt 0:00:20]} 23. hxg5 {[%emt 0:01:10]} Qxg5 {[%emt 0:00:13]} 24. Rxd8+ {[%emt 0:00:48]} Qxd8 {[%emt 0:00:28]} 25. Qa3+ {[%emt 0:00:02]} Ke8 {[%emt 0:02:12]} 26. Qxb2 {[%emt 0:02:44]} h4 {[%emt 0:01:32]} 27. Ne4 {[%emt 0:01:16]} Kf8 {[%emt 0:01:36]} 28. Qb4+ {[%emt 0:00:39]} Kg7 {[%emt 0:00:43]} 29. Qc3+ {[%emt 0:00:27]} Kf8 {[%emt 0:00:09]} 30. Qxc6 {[%emt 0:00:39]} f5 {[%emt 0:06:45]} 31. Qd6+ {[%emt 0:01:04]} Qxd6 {[%emt 0:00:25]} 32. Nxd6 {[%emt 0:00:03]} hxg3 {[%emt 0:00:09]} 33. c4 {[%emt 0:00:49]} Ke7 {[%emt 0:01:08]} 34. c5 {[%emt 0:00:28]} Ra8 {[%emt 0:01:38]} 35. Ra1 {[%emt 0:01:03]} gxf2+ {[%emt 0:01:06]} 36. Kxf2 {[%emt 0:00:10]} Ra3 {[%emt 0:00:13]} 37. Nb5 {[%emt 0:00:40]} Ra6 {[%emt 0:02:53]} 38. Nd4 {[%emt 0:02:42]} Ra4 {[%emt 0:02:58]} 39. Nc6+ {[%emt 0:03:32]} Kf6 {[%emt 0:02:25]} 40. Nb8 {[%emt 0:00:56]} Ke7 {[%emt 0:04:43]} 41. Rd1 {[%emt 0:02:00]} Rxa2+ {[%emt 0:03:18]} 42. Ke3 {[%emt 0:00:30]} Rb2 {[%emt 0:00:24]} 43. Rd7+ {[%emt 0:00:41]} Kf6 {[%emt 0:05:46]} 44. Rd8 {[%emt 0:01:18]} Rc2 {[%emt 0:03:04]} 45. c6 {[%emt 0:00:22]} e5 {[%emt 0:00:58]} 46. Rd6+ {[%emt 0:00:53]} Ke7 {[%emt 0:00:27]} 47. Rd7+ {[%emt 0:00:09]} Ke6 {[%emt 0:00:32]} 48. c7 {[%emt 0:00:55]} f4+ {[%emt 0:02:08]} 49. Kd3 {[%emt 0:00:36]} Rc1 {[%emt 0:01:03]} 50. Rh7 {[%emt 0:00:24]} Kd6 {[%emt 0:01:31]} 51. Na6 {[%emt 0:03:19]} f3 {[%emt 0:01:55]} 52. Ke3 {[%emt 0:01:49]} Rc3+ {[%emt 0:02:13]} 53. Kf2 {[%emt 0:00:12]} e4 {[%emt 0:00:12]} 54. Rh8 {[%emt 0:00:26]} Rc2+ 55. Ke3 f2 56. Rf8 1-0

[Event "Guimaraes Open 2018"]
[Site "Guimaraes"]
[Date "2018.10.07"]
[Round "7"]
[White "Suarez Uriel, Adrian"]
[Black "Pintor, Simao Maciel Abranc"]
[Result "0-1"]
[ECO "B38"]
[WhiteElo "2394"]
[BlackElo "2047"]
[Annotator "ChessBase"]
[PlyCount "84"]
[EventDate "2018.10.04"]
[EventType "swiss"]
[EventCountry "POR"]
[SourceTitle "playchess.com"]
[Source "ChessBase"]
[SourceQuality "1"]
[TimeControl "5400+30"]

1. e4 c5 2. Nf3 Nc6 3. d4 cxd4 4. Nxd4 g6 5. c4 Bg7 6. Be3 Nf6 7. Nc3 O-O 8. Be2 d6 9. f3 Nxd4 10. Bxd4 Bd7 11. Qd2 a5 12. h4 h5 13. O-O-O a4 14. a3 Qa5 15. Qe3 Rfc8 16. Kb1 Be6 17. g4 Bxc4 18. g5 Nd7 19. Bxg7 Bxe2 20. Rd5 Qa6 21. Bh6 Qb6 22. Qd2 Bxf3 23. Rf1 Bg4 24. Rb5 Qc6 25. Nd5 Re8 26. Rb4 Rac8 27. Qd4 Ne5 28. Qf2 Be6 29. Rb6 Bxd5 30. Rxc6 Bxe4+ 31. Ka1 Rxc6 32. Re1 Bf5 33. Qd4 Rec8 34. Ka2 Rc4 35. Qb6 Bc2 36. Rf1 Bb3+ 37. Kb1 Bc2+ 38. Ka1 Bd3 39. Re1 Rc1+ 40. Ka2 Rxe1 41. Qe3 Bc4+ 42. b3 Bxb3+ 0-1

[Event "Guimaraes Open 2018"]
[Site "Guimaraes"]
[Date "2018.10.07"]
[Round "7"]
[White "Herrera Reyes, Jose Antonio"]
[Black "Fidalgo, Andre Neves"]
[Result "0-1"]
[ECO "A05"]
[WhiteElo "2343"]
[BlackElo "2181"]
[Annotator "NA"]
[PlyCount "82"]
[EventDate "2018.10.04"]
[EventType "swiss"]
[EventCountry "POR"]
[SourceTitle "playchess.com"]
[Source "ChessBase"]
[SourceQuality "1"]
[TimeControl "5400+30"]

1. Nf3 {[%emt 0:05:28]} Nf6 {[%emt 0:00:00]} 2. g3 {[%emt 0:00:01]} g6 {[%emt 0:00:00]} 3. Bg2 {[%emt 0:00:03]} Bg7 {[%emt 0:00:04]} 4. d3 {[%emt 0:00:04]} d5 {[%emt 0:00:08]} 5. c3 {[%emt 0:00:05] A07: Réti Opening: New York and Capablanca Systems} (5. O-O O-O 6. Nc3 c5 7. e4 d4 8. Ne2 Nc6 9. Nd2 e5 10. h3 Ne8 11. f4 Nd6 12. g4 f5 13. exf5 gxf5 14. g5 Bd7 {1-0 (37) Nakamura,H (2777)-Hou,Y (2658) chess.com INT 2018}) 5... c5 {[%emt 0:00:17]} 6. a3 {[%emt 0:00:04]} b6 $146 {[%emt 0:00:24]} ({Predecessor:} 6... O-O 7. O-O Nc6 8. Nbd2 e5 9. e4 dxe4 10. dxe4 Qc7 11. b4 Rd8 12. Qe2 cxb4 13. axb4 {1-0 (47) Hickl,J (2566)-Mueller,R (2231) Germany 2013}) 7. b4 {[%emt 0:00:00]} Nbd7 {[%emt 0:00:00]} 8. h4 {[%emt 0:00:32]} h6 {[%emt 0:01:46]} 9. Bf4 {[%emt 0:01:01]} Bb7 {[%emt 0:03:56]} 10. Qc1 {[%emt 0:01:23]} (10. d4 $11 {hält das Gleichgewicht.}) 10... Nh5 {[%emt 0:02:35]} 11. Be3 {[%emt 0:00:29]} d4 {[%emt 0:04:58]} 12. Bd2 {[%emt 0:01:01]} Ne5 {[%emt 0:07:55]} 13. O-O {[%emt 0:03:48]} Nxf3+ {[%emt 0:07:04]} 14. exf3 {[%emt 0:00:02]} dxc3 {[%emt 0:01:23]} 15. Bxc3 {[%emt 0:00:22]} Bd4 {[%emt 0:02:43]} 16. g4 {[%emt 0:13:02]} (16. Kh1 $15) 16... Ng7 {[%emt 0:03:06]} 17. bxc5 {[%emt 0:02:50]} bxc5 {[%emt 0:00:25]} 18. Bxd4 {[%emt 0:02:10]} Qxd4 {[%emt 0:01:17]} 19. Nc3 {[%emt 0:01:01]} Ne6 {[%emt 0:03:55]} 20. Ne2 {[%emt 0:13:48] [#]} Qf6 $1 {[%emt 0:07:49]} ({Don't play} 20... Qxd3 21. Nf4 $15) 21. Rb1 {[%emt 0:00:58]} Bxf3 {[%emt 0:02:11]} 22. Qe3 {[%emt 0:01:56]} (22. Qb2 $17 {was necessary.} Bxg2 23. Kxg2) 22... Bxg2 {[%emt 0:00:43]} 23. Kxg2 {[%emt 0:00:02]} Qxh4 {[%emt 0:01:22]} 24. Qe4 {[%emt 0:01:50]} O-O {[%emt 0:00:49]} 25. Rh1 {[%emt 0:00:20]} Qg5 {[%emt 0:00:08]} 26. Rbg1 {[%emt 0:00:32]} Rab8 {[%emt 0:00:53]} 27. f4 {[%emt 0:00:54]} Qf6 {[%emt 0:00:32]} 28. f5 {[%emt 0:13:57]} Ng5 {[%emt 0:05:59]} 29. Qe3 {[%emt 0:00:43]} Kg7 {[%emt 0:05:19]} 30. Rf1 {[%emt 0:03:15]} Rb2 {[%emt 0:09:51]} 31. Kg1 {[%emt 0:05:02]} Rfb8 {[%emt 0:16:27]} 32. fxg6 {[%emt 0:00:56]} Rb1 {[%emt 0:00:05]} 33. Kg2 {[%emt 0:02:17]} Qc6+ {[%emt 0:00:07]} 34. Kg3 {[%emt 0:00:28]} Qd6+ {[%emt 0:00:05]} 35. Nf4 {[%emt 0:00:19]} Rxf1 {[%emt 0:00:07]} 36. Rxf1 {[%emt 0:00:00]} fxg6 {[%emt 0:00:31]} 37. Re1 {[%emt 0:04:24]} e6 $19 {[%emt 0:02:23]} 38. Kg2 {[%emt 0:08:27]} Rb2+ {[%emt 0:00:42]} 39. Kf1 {[%emt 0:00:55]} Qd4 {[%emt 0:01:26]} 40. Qg3 {[%emt 0:03:02]} Qf6 {[%emt 0:02:10]} 41. Qe3 {[%emt 0:02:22]} Nh3 {[%emt 0:01:19]} 0-1

[Event "Guimaraes Open 2018"]
[Site "Guimaraes"]
[Date "2018.10.07"]
[Round "7"]
[White "Paasikangas-Tella, Johanna"]
[Black "Silva, Goncalo Nuno Neto P"]
[Result "1/2-1/2"]
[ECO "A40"]
[WhiteElo "2233"]
[BlackElo "1996"]
[Annotator "NA"]
[PlyCount "101"]
[EventDate "2018.10.04"]
[EventType "swiss"]
[EventCountry "POR"]
[SourceTitle "playchess.com"]
[Source "ChessBase"]
[SourceQuality "1"]
[TimeControl "5400+30"]

1. d4 {[%emt 0:00:00]} g6 {[%emt 0:00:00]} 2. Nf3 {[%emt 0:00:00]} Bg7 {[%emt 0:00:00]} 3. e4 {[%emt 0:00:10]} c5 {[%emt 0:00:00]} 4. c3 {[%emt 0:00:10]} cxd4 {[%emt 0:00:00]} 5. cxd4 {[%emt 0:00:07]} Nf6 {[%emt 0:00:07]} 6. Nc3 {[%emt 0:00:21]} O-O {[%emt 0:00:09]} 7. Bd3 {[%emt 0:03:11]} d6 {[%emt 0:00:14]} 8. h3 {[%emt 0:01:32]} Nc6 {[%emt 0:00:38]} 9. O-O {[%emt 0:00:34]} Bd7 {[%emt 0:00:24] B07: Pirc Defence: Miscellaneous Systems} (9... a6 10. Be3 b5 11. Rc1 Bb7 12. Qd2 Rc8 13. d5 Na5 14. b3 Nd7 15. Bd4 Bxd4 16. Nxd4 Qb6 17. Nce2 Rc5 {½-½ (50) Karjakin,S (2783)-Nepomniachtchi,I (2751) chess.com INT 2017}) 10. Re1 {[%emt 0:02:27]} Qa5 {[%emt 0:02:32]} 11. Be3 $146 {[%emt 0:02:24]} ({Predecessor:} 11. Bd2 Qd8 12. e5 dxe5 13. dxe5 Ne8 14. Bg5 {½-½ (54) Martian,D (2275)-Gulie,C (2057) Calimanesti Caciulata 2017}) 11... Rac8 {[%emt 0:03:51]} 12. Qd2 {[%emt 0:01:44]} a6 {[%emt 0:01:10]} 13. Bf1 {[%emt 0:03:15]} b5 {[%emt 0:02:03]} 14. a3 {[%emt 0:04:11]} Qc7 {[%emt 0:01:02]} 15. Rac1 {[%emt 0:02:10]} Qb7 {[%emt 0:00:37]} 16. e5 {[%emt 0:05:05]} Ne8 {[%emt 0:00:52]} 17. Ne4 {[%emt 0:05:35]} Bf5 {[%emt 0:06:12]} 18. Ng3 {[%emt 0:06:19]} Bd7 {[%emt 0:02:31]} (18... dxe5 $11 {remains equal.} 19. Nxf5 gxf5) 19. Bh6 {[%emt 0:02:18]} dxe5 {[%emt 0:02:38]} 20. Bxg7 {[%emt 0:01:24]} Nxg7 {[%emt 0:00:26]} 21. Qh6 {[%emt 0:04:08]} f6 {[%emt 0:01:11]} 22. dxe5 {[%emt 0:00:39]} Nd8 {[%emt 0:00:46]} 23. Rxc8 {[%emt 0:04:41]} Bxc8 {[%emt 0:00:18]} 24. Bd3 {[%emt 0:05:43]} Nf7 {[%emt 0:01:24]} 25. Qh4 {[%emt 0:00:23]} f5 {[%emt 0:03:05]} 26. Qb4 {[%emt 0:03:00]} Be6 {[%emt 0:02:01]} 27. Ne2 {[%emt 0:04:13]} Bd5 {[%emt 0:01:21]} 28. Ned4 {[%emt 0:00:34]} Ne6 $11 {[%emt 0:00:46]} 29. Nxe6 {[%emt 0:00:59]} Bxe6 {[%emt 0:00:24]} 30. Bf1 {[%emt 0:01:26]} Bd5 {[%emt 0:01:08]} 31. Nd4 {[%emt 0:00:19]} Rc8 {[%emt 0:00:12]} 32. Qd2 {[%emt 0:04:52]} e6 {[%emt 0:03:01]} 33. f4 {[%emt 0:04:22]} Nd8 {[%emt 0:00:58]} 34. Ne2 {[%emt 0:02:13]} Qb6+ {[%emt 0:04:35]} 35. Qd4 {[%emt 0:02:29]} Qxd4+ {[%emt 0:00:29]} 36. Nxd4 {[%emt 0:00:06]} Rc5 {[%emt 0:00:05]} 37. Kf2 {[%emt 0:02:57]} Nc6 {[%emt 0:00:36]} 38. Nxc6 {[%emt 0:00:32]} Rxc6 {[%emt 0:00:02]} 39. Bd3 {[%emt 0:00:59]} Kf7 {[%emt 0:01:28]} 40. g4 {[%emt 0:02:09]} h6 {[%emt 0:00:10]} 41. Rg1 {[%emt 0:00:52]} Be4 {[%emt 0:06:58]} 42. Bxe4 {[%emt 0:00:51]} fxe4 {[%emt 0:00:01]} 43. Re1 {[%emt 0:01:33]} Rc4 {[%emt 0:01:05]} 44. h4 {[%emt 0:02:04]} b4 {[%emt 0:00:27]} 45. Re3 {[%emt 0:03:31]} bxa3 {[%emt 0:03:05]} 46. Rxa3 {[%emt 0:02:36]} Rc2+ {[%emt 0:00:08]} 47. Ke3 {[%emt 0:00:08]} Rxb2 {[%emt 0:00:35]} 48. Rxa6 {[%emt 0:00:10]} Rb3+ {[%emt 0:00:44]} 49. Kxe4 {[%emt 0:00:18]} Rb4+ {[%emt 0:00:03]} 50. Ke3 {[%emt 0:00:44]} Rb3+ {[%emt 0:00:02]} 51. Ke4 1/2-1/2

[Event "Guimaraes Open 2018"]
[Site "Guimaraes"]
[Date "2018.10.07"]
[Round "7"]
[White "Costa, Paulo Jorge Lopes d"]
[Black "Huerga Leache, Mikel"]
[Result "1/2-1/2"]
[ECO "A04"]
[WhiteElo "2191"]
[BlackElo "2446"]
[Annotator "NA"]
[PlyCount "34"]
[EventDate "2018.10.04"]
[EventType "swiss"]
[EventCountry "POR"]
[SourceTitle "playchess.com"]
[Source "ChessBase"]
[SourceQuality "1"]
[TimeControl "5400+30"]

1. Nf3 {[%emt 0:00:31]} b6 {[%emt 0:06:11]} 2. g3 {[%emt 0:01:14]} Bb7 {[%emt 0:01:07]} 3. Bg2 {[%emt 0:00:09]} d5 {[%emt 0:00:01]} 4. O-O {[%emt 0:00:58]} Nf6 {[%emt 0:00:17]} 5. d3 {[%emt 0:00:51] A07: Réti Opening: New York and Capablanca Systems} (5. b3 e6 6. Bb2 Be7 7. c4 dxc4 8. bxc4 c5 9. Nc3 O-O 10. e3 Nc6 11. Qe2 Rc8 12. Rad1 Qc7 13. Ne1 Rfd8 14. f4 Nb4 15. Nb5 Qd7 16. a3 Bxg2 17. Kxg2 Nc6 18. Nc3 Qb7 19. Qf3 Rd7 {1-0 (82) Jakovenko,D (2710)-Moiseenko,V (2543) Sochi 2017}) 5... Nbd7 {[%emt 0:01:33]} 6. Nbd2 {[%emt 0:03:25]} c5 {[%emt 0:01:15]} 7. e4 {[%emt 0:01:50] LiveBook: 3 Games} dxe4 {[%emt 0:03:38]} 8. Ng5 {[%emt 0:01:48]} Qc8 {[%emt 0:00:06]} 9. Ngxe4 {[%emt 0:00:50]} e6 $146 {[%emt 0:01:29]} ({Predecessor:} 9... Nxe4 10. Nxe4 Nf6 11. Re1 Nxe4 12. Bxe4 Bxe4 13. Rxe4 {1-0 (44) Tompa,J (2384)-Boricsev,O (2429) Hungary 2010}) 10. Nc4 {[%emt 0:01:41]} Nxe4 {[%emt 0:00:18]} 11. dxe4 {[%emt 0:00:05]} Ba6 {[%emt 0:01:48]} 12. Nd6+ {[%emt 0:04:59]} Bxd6 {[%emt 0:00:06]} 13. Qxd6 {[%emt 0:00:05]} Bxf1 {[%emt 0:01:49]} 14. Bg5 {[%emt 0:02:17]} f6 {[%emt 0:03:04]} 15. Qxe6+ {[%emt 0:01:28]} Kd8 {[%emt 0:01:15]} 16. Bxf1 {[%emt 0:05:07]} Re8 {[%emt 0:03:12]} 17. Qd5 $11 {[%emt 0:06:32]} Re5 {[%emt 0:21:33]} 1/2-1/2

[Event "Guimaraes Open 2018"]
[Site "Guimaraes"]
[Date "2018.10.07"]
[Round "7"]
[White "Rey Malde, Henrique"]
[Black "Frois, Antonio"]
[Result "1/2-1/2"]
[ECO "B36"]
[WhiteElo "2177"]
[BlackElo "2267"]
[Annotator "NA"]
[PlyCount "43"]
[EventDate "2018.10.04"]
[EventType "swiss"]
[EventCountry "POR"]
[SourceTitle "playchess.com"]
[Source "ChessBase"]
[SourceQuality "1"]
[TimeControl "5400+30"]

1. e4 {[%emt 0:00:38]} c5 {[%emt 0:00:35]} 2. Nf3 {[%emt 0:00:20]} Nc6 {[%emt 0:00:05]} 3. d4 {[%emt 0:00:21]} cxd4 {[%emt 0:00:04]} 4. Nxd4 {[%emt 0:00:07]} g6 {[%emt 0:00:03]} 5. c4 {[%emt 0:01:43]} Nf6 {[%emt 0:00:07]} 6. Nc3 {[%emt 0:00:37]} d6 {[%emt 0:00:04]} 7. Be2 {[%emt 0:01:19]} Bg7 {[%emt 0:00:08]} 8. Be3 {[%emt 0:02:13]} O-O {[%emt 0:00:05]} 9. O-O {[%emt 0:00:16]} Bd7 {[%emt 0:00:06]} 10. h3 {[%emt 0:03:28]} Nxd4 {[%emt 0:00:38]} 11. Bxd4 {[%emt 0:00:21]} Bc6 {[%emt 0:00:05] LiveBook: 89 Games} 12. Qc2 {[%emt 0:01:52] B38: Sicilian: Maroczy Bind with 5...Bg7 and 7...0-0} (12. Bf3 a5 13. Qd2 Nd7 14. Bxg7 Kxg7 15. b3 Qb6 16. Nd5 Bxd5 17. exd5 Qb4 18. Qb2+ Kg8 19. a3 Qb6 {½-½ (29) Romanov,E (2619)-Ivanchuk,V (2713) Batumi 2018}) 12... Nd7 {[%emt 0:06:54]} 13. Bxg7 {[%emt 0:10:50]} Kxg7 {[%emt 0:00:04]} 14. b4 {[%emt 0:00:15]} b6 {[%emt 0:00:12]} 15. Rad1 {[%emt 0:03:54]} a5 {[%emt 0:01:04]} 16. a3 {[%emt 0:01:40]} axb4 {[%emt 0:00:05]} 17. axb4 {[%emt 0:00:04]} Kg8 $146 {[%emt 0:01:16]} ({Predecessor:} 17... Qc7 18. Qd2 Nf6 19. g4 Kg8 {1-0 (31) Portela Peleteiro,A (2340)-Oztekin,K (1910) Prague 2016}) 18. Bg4 {[%emt 0:04:42]} Ne5 {[%emt 0:01:06]} 19. c5 {[%emt 0:02:05]} bxc5 {[%emt 0:00:21]} 20. bxc5 {[%emt 0:11:30]} Nxg4 {[%emt 0:00:06]} 21. hxg4 {[%emt 0:00:04]} Qc8 $11 {[%emt 0:00:13]} 22. cxd6 {[%emt 0:12:51]} 1/2-1/2

[Event "Guimaraes Open 2018"]
[Site "Guimaraes"]
[Date "2018.10.07"]
[Round "7"]
[White "Dias, Ivo Rodrigues"]
[Black "Bazan Solera, Manuel"]
[Result "1-0"]
[ECO "B06"]
[WhiteElo "2174"]
[BlackElo "1932"]
[Annotator "NA"]
[PlyCount "75"]
[EventDate "2018.10.04"]
[EventType "swiss"]
[EventCountry "POR"]
[SourceTitle "playchess.com"]
[Source "ChessBase"]
[SourceQuality "1"]
[TimeControl "5400+30"]

1. e4 {[%emt 0:00:00]} d6 {[%emt 0:00:00]} 2. d4 {[%emt 0:00:00]} g6 {[%emt 0:00:00]} 3. Nc3 {[%emt 0:00:00]} Bg7 {[%emt 0:00:00]} 4. Bg5 {[%emt 0:00:33]} c6 {[%emt 0:00:02]} 5. Qd2 {[%emt 0:00:11]} Qa5 {[%emt 0:00:38]} 6. f4 {[%emt 0:00:46]} h6 {[%emt 0:06:24] B06: Modern Defence} 7. Bh4 {[%emt 0:00:21]} Qh5 $146 {[%emt 0:01:39]} ({Predecessor:} 7... Nf6 8. Nf3 Bg4 9. Bd3 Bxf3 10. gxf3 Qh5 11. Qf2 Nbd7 12. O-O-O Qa5 13. e5 Nd5 14. Nxd5 cxd5 {½-½ (43) Stojanovic,D (2481)-Arapovic,V (2366) Bihac 2010}) 8. Bf2 {[%emt 0:02:04]} Bg4 {[%emt 0:00:57]} 9. Nge2 $2 {[%emt 0:03:26]} (9. h3 $18) 9... Bxe2 {[%emt 0:01:02]} 10. Bxe2 {[%emt 0:00:11]} Qa5 {[%emt 0:00:08]} 11. e5 {[%emt 0:03:38]} d5 {[%emt 0:00:59]} 12. O-O-O {[%emt 0:01:33]} e6 {[%emt 0:01:41]} 13. Kb1 {[%emt 0:00:09]} Ne7 {[%emt 0:00:08]} 14. g4 {[%emt 0:02:03]} Nd7 {[%emt 0:00:37]} 15. Bh4 {[%emt 0:03:18]} b5 {[%emt 0:01:08]} 16. Bxe7 {[%emt 0:02:49]} b4 {[%emt 0:00:29]} 17. Nxd5 {[%emt 0:02:28]} cxd5 {[%emt 0:03:32]} 18. Bxb4 {[%emt 0:00:13]} Qb6 {[%emt 0:00:16]} 19. f5 {[%emt 0:00:13]} a5 {[%emt 0:00:35]} 20. Ba3 {[%emt 0:00:29]} Bf8 {[%emt 0:00:12]} 21. Bxf8 {[%emt 0:04:30]} Kxf8 {[%emt 0:02:52]} 22. Rhf1 {[%emt 0:00:28]} Rb8 {[%emt 0:00:45]} 23. c4 {[%emt 0:00:12]} Kg7 {[%emt 0:00:46]} 24. c5 {[%emt 0:03:13]} Qb4 {[%emt 0:00:20]} 25. Qxb4 {[%emt 0:01:24]} Rxb4 {[%emt 0:00:11]} 26. a3 {[%emt 0:00:47]} Rb3 {[%emt 0:00:37]} 27. Rf3 {[%emt 0:00:30]} Rhb8 {[%emt 0:00:15]} 28. Rxb3 {[%emt 0:00:25]} Rxb3 {[%emt 0:00:06]} 29. c6 {[%emt 0:01:01]} Nb6 {[%emt 0:00:52]} 30. c7 $18 {[%emt 0:01:29]} exf5 {[%emt 0:03:09]} 31. gxf5 {[%emt 0:00:14]} gxf5 {[%emt 0:00:09]} 32. Rd3 {[%emt 0:01:14]} Rxd3 {[%emt 0:01:07]} 33. Bxd3 {[%emt 0:00:01]} f4 {[%emt 0:00:16]} 34. Ba6 {[%emt 0:00:29]} f3 {[%emt 0:01:06]} 35. c8=Q {[%emt 0:00:14]} Nxc8 {[%emt 0:00:03]} 36. Bxc8 {[%emt 0:00:09]} f2 {[%emt 0:00:18]} 37. Bh3 {[%emt 0:00:06]} Kg6 {[%emt 0:00:01]} 38. b4 {[%emt 0:00:09]} 1-0

[Event "Guimaraes Open 2018"]
[Site "Guimaraes"]
[Date "2018.10.07"]
[Round "7"]
[White "Dias, Ricardo Pedro Cruz"]
[Black "Machado, Tomas Dias"]
[Result "1/2-1/2"]
[ECO "B33"]
[WhiteElo "2098"]
[BlackElo "1966"]
[Annotator "NA"]
[PlyCount "34"]
[EventDate "2018.10.04"]
[EventType "swiss"]
[EventCountry "POR"]
[SourceTitle "playchess.com"]
[Source "ChessBase"]
[SourceQuality "1"]
[TimeControl "5400+30"]

1. e4 {[%emt 0:00:00]} c5 {[%emt 0:02:24]} 2. Nf3 {[%emt 0:00:00]} Nc6 {[%emt 0:00:04]} 3. d4 {[%emt 0:00:01]} cxd4 {[%emt 0:00:04]} 4. Nxd4 {[%emt 0:00:07]} Nf6 {[%emt 0:01:54]} 5. Nc3 {[%emt 0:00:05]} e5 {[%emt 0:00:04]} 6. Ndb5 {[%emt 0:00:09]} d6 {[%emt 0:00:03]} 7. Bg5 {[%emt 0:00:12]} a6 {[%emt 0:00:05]} 8. Na3 {[%emt 0:00:04]} b5 {[%emt 0:00:03]} 9. Bxf6 {[%emt 0:00:06]} gxf6 {[%emt 0:00:47]} 10. Nd5 {[%emt 0:00:06]} f5 {[%emt 0:00:03]} 11. Bd3 {[%emt 0:00:51]} Be6 {[%emt 0:00:25]} 12. O-O {[%emt 0:01:43]} Rg8 {[%emt 0:15:11]} 13. Qh5 {[%emt 0:03:50]} Rg5 {[%emt 0:13:59]} 14. Qxh7 {[%emt 0:01:33]} Rg6 {[%emt 0:00:28]} 15. f4 $17 {[%emt 0:11:41]} (15. exf5 $11 Rh6 16. fxe6 Rxh7 17. e7 Bxe7 18. Bxh7) 15... Rh6 {[%emt 0:01:28]} 16. Qg8 {[%emt 0:00:04]} Rg6 {[%emt 0:00:23]} 17. Qh7 {[%emt 0:00:19]} Rh6 {[%emt 0:00:05]} 1/2-1/2

[Event "Guimaraes Open 2018"]
[Site "Guimaraes"]
[Date "2018.10.07"]
[Round "7"]
[White "Fernandes, Ricardo Paulos"]
[Black "Fonseca, Pedro Miguel Ramos "]
[Result "1-0"]
[ECO "A05"]
[WhiteElo "2098"]
[BlackElo "1437"]
[Annotator "NA"]
[PlyCount "91"]
[EventDate "2018.10.04"]
[EventType "swiss"]
[EventCountry "POR"]
[SourceTitle "playchess.com"]
[Source "ChessBase"]
[SourceQuality "1"]
[TimeControl "5400+30"]

1. Nf3 {[%emt 0:00:00]} Nf6 {[%emt 0:00:00]} 2. g3 {[%emt 0:00:00]} d5 {[%emt 0:00:00]} 3. Bg2 {[%emt 0:00:00]} c6 {[%emt 0:00:09]} 4. O-O {[%emt 0:00:26]} Bf5 {[%emt 0:01:39]} 5. d3 {[%emt 0:00:04]} e6 {[%emt 0:00:48]} 6. Nbd2 {[%emt 0:01:51]} h6 {[%emt 0:00:48]} 7. c4 {[%emt 0:00:43]} Be7 {[%emt 0:01:05]} 8. a3 {[%emt 0:00:40]} a5 {[%emt 0:00:38]} 9. b3 Nbd7 {[%emt 0:00:56]} 10. Bb2 {[%emt 0:01:20]} O-O {[%emt 0:01:10]} 11. Rc1 {[%emt 0:02:54]} Qb6 {[%emt 0:02:18]} 12. d4 {[%emt 0:05:50] A12: Reti-Eröffnung (New-Yorker-System)} (12. Qc2 Rfd8 13. Rfe1 Ng4 14. e3 Nc5 15. Bd4 Qa6 16. Bf1 dxc4 17. Nxc4 Nd7 18. Qb2 Ngf6 19. Bc3 b5 20. Nxa5 {½-½ (40) Zhao,X (2514)-Kosteniuk,A (2541) Beijing 2014}) 12... Rfe8 $146 {[%emt 0:05:14]} ({Vorgänger:} 12... Ne4 13. c5 Qc7 14. Ne5 Nexc5 15. Nxc6 bxc6 16. dxc5 Nxc5 17. Bd4 Ne4 18. Nxe4 dxe4 19. Bc5 Rfd8 {½-½ (30) Peacock,M (2123)-Ilett,R (1886) Coventry 2015}) 13. c5 {[%emt 0:05:00]} Qc7 {[%emt 0:02:40]} 14. Re1 {[%emt 0:00:49]} b5 {[%emt 0:05:12]} 15. Nh4 {[%emt 0:21:28]} Bh7 {[%emt 0:00:30]} 16. f4 {[%emt 0:00:40]} Ng4 {[%emt 0:07:00]} 17. e4 {[%emt 0:00:06]} Bxh4 {[%emt 0:00:39]} 18. Qxg4 {[%emt 0:00:03]} Be7 {[%emt 0:03:01]} 19. e5 {[%emt 0:03:26]} a4 {[%emt 0:03:11]} 20. b4 {[%emt 0:01:19]} Bf5 {[%emt 0:03:07]} 21. Qe2 {[%emt 0:01:58]} Bf8 {[%emt 0:04:05]} 22. Rf1 {[%emt 0:01:39]} Bh7 {[%emt 0:02:41]} 23. Bh3 {[%emt 0:01:07]} g6 {[%emt 0:02:08]} ({Black should play} 23... Be7 $14) 24. g4 {[%emt 0:01:46]} Qd8 {[%emt 0:02:40]} 25. Kh1 {[%emt 0:02:57]} f5 {[%emt 0:02:57]} 26. exf6 {[%emt 0:03:14]} Qxf6 {[%emt 0:00:49]} 27. Rce1 {[%emt 0:18:52]} g5 {[%emt 0:03:27]} 28. fxg5 {[%emt 0:06:52]} Qxg5 {[%emt 0:00:26]} 29. Nf3 {[%emt 0:00:12]} Qg7 {[%emt 0:05:41]} 30. g5 {[%emt 0:00:16]} Bf5 {[%emt 0:00:15]} 31. gxh6 {[%emt 0:00:50]} Qxh6 {[%emt 0:01:09]} 32. Rg1+ {[%emt 0:01:01]} Kh8 $1 {[%emt 0:01:27]} 33. Ng5 {[%emt 0:10:42]} Qg6 {[%emt 0:03:56]} 34. Nf3 {[%emt 0:03:08]} Qh6 {[%emt 0:00:20]} 35. Bxf5 {[%emt 0:03:02]} exf5 {[%emt 0:00:08]} 36. Ne5 {[%emt 0:01:24]} Nxe5 {[%emt 0:02:35]} 37. dxe5 {[%emt 0:00:03]} Re6 {[%emt 0:01:34]} 38. Qf3 $18 {[%emt 0:00:59]} Qh7 {[%emt 0:01:45]} 39. Rg5 {[%emt 0:00:29]} Bg7 {[%emt 0:02:17]} 40. Reg1 {[%emt 0:01:25]} Rh6 {[%emt 0:00:56]} 41. Qf2 {[%emt 0:00:13]} Rg8 {[%emt 0:01:28]} 42. e6 {[%emt 0:00:11]} d4 {[%emt 0:02:21]} 43. Bxd4 {[%emt 0:00:32]} f4 {[%emt 0:00:24]} 44. Bxg7+ {[%emt 0:00:46]} Rxg7 {[%emt 0:00:04]} 45. Rxg7 {[%emt 0:00:34]} Qe4+ {[%emt 0:00:12]} 46. Qg2 {[%emt 0:00:26]} 1-0